fUSD/lending_fUSD_20250616
["ID","MTS","AMOUNT","RATE_DAILY","PERIOD"]
[366169217,1750097463680,-490.0,0.00016051,2]
[366169218,1750097463690,-1234.25,0.00016051,2]
[366169219,1750097463699,-490.0,0.00016051,2]
[366169220,1750097463709,-2114.77,0.00016051,2]
[366169221,1750097463719,-705.05,0.00016051,2]
[366169222,1750097463729,-3019.32,0.00016051,2]
[366169223,1750097463740,-2901.48,0.00016051,2]
[366169224,1750097463750,-490.0,0.00016051,2]
[366169225,1750097463759,-151.0,0.00016051,2]
[366169226,1750097463770,-920.09,0.00016051,2]
[366169227,1750097463781,-3394.88,0.00016051,2]
[366169228,1750097463791,-1259.21,0.00016051,2]
[366169229,1750097463802,-151.0,0.00016051,2]
[366169230,1750097463812,-747.22,0.00016051,2]
[366169231,1750097463822,-917.9,0.00016051,2]
[366169232,1750097463832,-525.08,0.00016051,2]
[366169233,1750097463842,-490.0,0.00016051,2]
[366169234,1750097463852,-881.3,0.00016051,2]
[366169235,1750097463862,-959.79,0.00016051,2]
[366169236,1750097463872,-3957.31,0.00016051,2]
[366169237,1750097463882,-2591.73,0.00016051,2]
[366169238,1750097463892,-490.0,0.00016051,2]
[366169239,1750097463902,-1570.26,0.00016051,2]
[366169240,1750097463912,-1178.34,0.00016051,2]
[366169241,1750097463922,-1249.99,0.00016051,2]
[366169242,1750097463932,-490.0,0.00016051,2]
[366169243,1750097463942,-1442.17,0.00016051,2]
[366169244,1750097463953,-816.12,0.00016051,2]
[366169245,1750097463964,-559.14,0.00016051,2]
[366169246,1750097463976,-705.02,0.00016051,2]
[366169247,1750097463987,-1583.7,0.00016051,2]
[366169248,1750097463997,-490.0,0.00016051,2]
[366169249,1750097464007,-490.0,0.00016051,2]
[366169250,1750097464017,-490.0,0.00016051,2]
[366169251,1750097464028,-660.21,0.00016051,2]
[366169252,1750097464038,-933.55,0.00016051,2]
[366169253,1750097464047,-572.2,0.00016051,2]
[366169254,1750097464057,-1064.83,0.00016051,2]
[366169255,1750097464067,-1877.29,0.00016051,2]
[366169256,1750097464077,-490.0,0.00016051,2]
[366169257,1750097464087,-490.0,0.00016051,2]
[366169258,1750097464098,-5808.97,0.00016051,2]
[366169259,1750097464107,-490.0,0.00016051,2]
[366169260,1750097464117,-2003.01,0.00016051,2]
[366169261,1750097464127,-490.0,0.00016051,2]
[366169262,1750097464137,-490.0,0.00016051,2]
[366169263,1750097464147,-1016.09,0.00016051,2]
[366169264,1750097464157,-490.0,0.00016051,2]
[366169265,1750097464167,-490.0,0.00016051,2]
[366169266,1750097464177,-1379.16,0.00016051,2]
[366169267,1750097464187,-5973.49,0.00016051,2]
[366169268,1750097464196,-543.98,0.00016051,2]
[366169269,1750097464206,-556.11,0.00016051,2]
[366169270,1750097464215,-583.93,0.00016051,2]
[366169271,1750097464225,-2191.82,0.00016051,2]
[366169272,1750097464235,-2541.52,0.00016051,2]
[366169273,1750097464245,-1589.64,0.00016051,2]
[366169274,1750097464258,-1169.98,0.00016051,2]
[366169275,1750097464267,-2216.25,0.00016051,2]
[366169276,1750097464277,-4248.73,0.00016051,2]
[366169277,1750097464287,-490.0,0.00016051,2]
[366169278,1750097464297,-1098.11,0.00016051,2]
[366169279,1750097464308,-651.19,0.00016051,2]
[366169280,1750097464318,-490.0,0.00016051,2]
[366169281,1750097464328,-707.97,0.00016051,2]
[366169282,1750097464338,-490.0,0.00016051,2]
[366169283,1750097464348,-490.0,0.00016051,2]
[366169284,1750097464357,-748.31,0.00016051,2]
[366169285,1750097464367,-695.28,0.00016051,2]
[366169286,1750097464378,-1609.92,0.00016051,2]
[366169287,1750097464388,-986.22,0.00016051,2]
[366169288,1750097464399,-490.0,0.00016051,2]
[366169289,1750097464408,-490.0,0.00016051,2]
[366169290,1750097464418,-775.78,0.00016051,2]
[366169291,1750097464429,-775.78,0.00016051,2]
[366169292,1750097464439,-775.78,0.00016051,2]
[366169293,1750097464450,-775.78,0.00016051,2]
[366169294,1750097464462,-775.9163976,0.00016051,2]
[366169295,1750097464472,-490.0,0.00016051,2]
[366169296,1750097464482,-490.0,0.00016051,2]
[366169297,1750097464492,-908.9,0.00016051,2]
[366169298,1750097464501,-593.17,0.00016051,2]
[366169299,1750097464511,-1730.21,0.00016051,2]
[366169300,1750097464521,-2098.49,0.00016051,2]
[366169301,1750097464534,-1940.76,0.00016051,2]
[366169302,1750097464543,-490.0,0.00016051,2]
[366169303,1750097464554,-538.8,0.00016051,2]
[366169304,1750097464563,-597.7,0.00016051,2]
[366169305,1750097464573,-490.0,0.00016051,2]
[366169306,1750097464584,-490.0,0.00016051,2]
[366169307,1750097464593,-1456.14,0.00016051,2]
[366169308,1750097464603,-490.0,0.00016051,2]
[366169309,1750097464614,-571.68,0.00016051,2]
[366169310,1750097464624,-706.67,0.00016051,2]
[366169311,1750097464634,-2767.0,0.00016051,2]
[366169312,1750097464644,-2318.25,0.00016051,2]
[366169313,1750097464653,-550.15,0.00016051,2]
[366169314,1750097464664,-569.59,0.00016051,2]
[366169315,1750097464673,-1192.81,0.00016051,2]
[366169316,1750097464683,-561.67,0.00016051,2]
[366169317,1750097464693,-4911.12,0.00016051,2]
[366169318,1750097464702,-13414.35,0.00016051,2]
[366169319,1750097464712,-490.0,0.00016051,2]
[366169320,1750097464722,-3575.07,0.00016051,2]
[366169321,1750097464732,-5130.5,0.00016051,2]
[366169322,1750097464741,-490.0,0.00016051,2]
[366169323,1750097464751,-690.53,0.00016051,2]
[366169324,1750097464762,-490.0,0.00016051,2]
[366169325,1750097464772,-490.0,0.00016051,2]
[366169326,1750097464782,-490.0,0.00016051,2]
[366169327,1750097464792,-1923.82,0.00016051,2]
[366169328,1750097464803,-151.0,0.00016052,2]
[366169329,1750097464814,-151.0,0.00016052,2]
[366169330,1750097464824,-151.0,0.00016052,2]
[366169331,1750097464834,-225.027572,0.00016052,2]
[366169332,1750097464844,-225.027572,0.00016052,2]
[366169333,1750097464854,-151.0,0.00016052,2]
[366169334,1750097464864,-151.0,0.00016052,2]
[366169335,1750097464875,-490.0,0.00016052,2]
[366169336,1750097464884,-631.55681085,0.00016052,2]
[366169337,1750097464894,-151.0,0.00016052,2]
[366169338,1750097464904,-181.640528,0.00016052,2]
[366169339,1750097464917,-490.0,0.00016052,2]
[366169340,1750097464927,-490.0,0.00016052,2]
[366169341,1750097464937,-490.0,0.00016052,2]
[366169342,1750097464947,-151.0,0.00016052,2]
[366169343,1750097464957,-985.41,0.00016052,2]
[366169344,1750097464968,-490.0,0.00016052,2]
[366169345,1750097464978,-490.0,0.00016052,2]
[366169346,1750097464989,-490.0,0.00016052,2]
[366169347,1750097464999,-151.0,0.00016052,2]
[366169348,1750097465010,-571.1,0.00016052,2]
[366169349,1750097465021,-151.0,0.00016052,2]
[366169350,1750097465031,-397.15,0.00016052,2]
[366169351,1750097465041,-490.0,0.00016052,2]
[366169352,1750097465051,-151.0,0.00016052,2]
[366169353,1750097465063,-490.0,0.00016052,2]
[366169354,1750097465074,-151.0,0.00016052,2]
[366169355,1750097465085,-151.0,0.00016052,2]
[366169356,1750097465096,-490.0,0.00016052,2]
[366169357,1750097465107,-490.0,0.00016052,2]
[366169358,1750097465117,-490.0,0.00016052,2]
[366169359,1750097465127,-490.0,0.00016052,2]
[366169360,1750097465137,-490.0,0.00016052,2]
[366169361,1750097465148,-151.0,0.00016052,2]
[366169362,1750097465159,-490.0,0.00016052,2]
[366169363,1750097465170,-193.35277,0.00016052,2]
[366169364,1750097465182,-490.0,0.00016052,2]
[366169365,1750097465192,-193.35277,0.00016052,2]
[366169366,1750097465204,-490.0,0.00016052,2]
[366169367,1750097465217,-490.0,0.00016052,2]
[366169368,1750097465228,-491.77458165,0.00016052,2]
[366169369,1750097465239,-269.98,0.00016052,2]
[366169370,1750097465250,-490.0,0.00016052,2]
[366169371,1750097465261,-490.0,0.00016052,2]
[366169372,1750097465272,-635.33,0.00016052,2]
[366169373,1750097465282,-151.0,0.00016052,2]
[366169374,1750097465294,-490.0,0.00016052,2]
[366169375,1750097465303,-151.0,0.00016052,2]
[366169376,1750097465314,-490.0,0.00016052,2]
[366169377,1750097465323,-490.0,0.00016052,2]
[366169378,1750097465333,-490.0,0.00016052,2]
[366169379,1750097465342,-490.0,0.00016052,2]
[366169380,1750097465352,-491.86527888,0.00016052,2]
[366169381,1750097465364,-490.0,0.00016052,2]
[366169382,1750097465374,-490.0,0.00016052,2]
[366169383,1750097465384,-203.213799,0.00016052,2]
[366169384,1750097465394,-563.86,0.00016052,2]
[366169385,1750097465404,-151.0,0.00016052,2]
[366169386,1750097465414,-151.0,0.00016052,2]
[366169387,1750097465424,-490.0,0.00016052,2]
[366169388,1750097465434,-490.0,0.00016052,2]
[366169389,1750097465446,-522.11,0.00016052,2]
[366169390,1750097465456,-490.0,0.00016052,2]
[366169391,1750097465466,-490.0,0.00016052,2]
[366169392,1750097465477,-491.69818678,0.00016052,2]
[366169393,1750097465490,-842.4,0.00016052,2]
[366169394,1750097465502,-490.0,0.00016052,2]
[366169395,1750097465512,-232.00159,0.00016052,2]
[366169396,1750097465521,-733.09,0.00016052,2]
[366169397,1750097465532,-688.876505,0.00016052,2]
[366169398,1750097465547,-490.0,0.00016052,2]
[366169399,1750097465558,-490.0,0.00016052,2]
[366169400,1750097465570,-688.876505,0.00016052,2]
[366169401,1750097465581,-490.0,0.00016052,2]
[366169402,1750097465591,-490.0,0.00016052,2]
[366169403,1750097465800,-151.0,0.00016052,2]
[366169404,1750097465813,-490.0,0.00016052,2]
[366169405,1750097465824,-490.0,0.00016052,2]
[366169406,1750097465834,-583.56,0.00016052,2]
[366169407,1750097465845,-490.0,0.00016052,2]
[366169408,1750097465855,-907.12,0.00016052,2]
[366169409,1750097465865,-151.0,0.00016052,2]
[366169410,1750097465875,-151.0,0.00016052,2]
[366169411,1750097465886,-494.22,0.00016052,2]
[366169412,1750097465896,-151.0,0.00016052,2]
[366169413,1750097465906,-355.24104025,0.00016052,2]
[366169414,1750097465917,-736.9,0.00016052,2]
[366169415,1750097465927,-293.630481,0.00016052,2]
[366169416,1750097465937,-490.0,0.00016052,2]
[366169417,1750097465947,-490.0,0.00016052,2]
[366169418,1750097465957,-1170.23,0.00016052,2]
[366169419,1750097465967,-490.0,0.00016052,2]
[366169420,1750097465977,-151.0,0.00016052,2]
[366169421,1750097465988,-490.0,0.00016052,2]
[366169422,1750097465999,-490.0,0.00016052,2]
[366169423,1750097466010,-490.0,0.00016052,2]
[366169424,1750097466023,-151.0,0.00016052,2]
[366169425,1750097466033,-234.439008,0.00016052,2]
[366169426,1750097466044,-658.16,0.00016052,2]
[366169427,1750097466055,-713.7,0.00016052,2]
[366169428,1750097466065,-775.4,0.00016052,2]
[366169429,1750097466075,-490.0,0.00016052,2]
[366169430,1750097466085,-151.0,0.00016052,2]
[366169431,1750097466095,-328.05762343,0.00016052,2]
[366169432,1750097466105,-490.0,0.00016052,2]
[366169433,1750097466115,-650.98,0.00016052,2]
[366169434,1750097466124,-490.0,0.00016052,2]
[366169435,1750097466135,-727.19,0.00016052,2]
[366169436,1750097466145,-490.0,0.00016052,2]
[366169437,1750097466155,-490.0,0.00016052,2]
[366169438,1750097466165,-490.0,0.00016052,2]
[366169439,1750097466174,-151.0,0.00016052,2]
[366169440,1750097466184,-895.18,0.00016052,2]
[366169441,1750097466195,-671.04,0.00016052,2]
[366169442,1750097466204,-509.39,0.00016052,2]
[366169443,1750097466214,-490.0,0.00016052,2]
[366169444,1750097466223,-720.72,0.00016052,2]
[366169445,1750097466232,-757.48,0.00016052,2]
[366169446,1750097466242,-490.0,0.00016052,2]
[366169447,1750097466252,-151.0,0.00016052,2]
[366169448,1750097466262,-490.0,0.00016052,2]
[366169449,1750097466271,-151.0,0.00016052,2]
[366169450,1750097466280,-363.89944984,0.00016052,2]
[366169451,1750097466290,-490.0,0.00016052,2]
[366169452,1750097466299,-1126.62,0.00016052,2]
[366169453,1750097466309,-151.0,0.00016052,2]
[366169454,1750097466318,-490.0,0.00016052,2]
[366169455,1750097466327,-648.98,0.00016052,2]
[366169456,1750097466337,-151.0,0.00016052,2]
[366169457,1750097466346,-490.0,0.00016052,2]
[366169458,1750097466356,-490.0,0.00016052,2]
[366169459,1750097466365,-490.0,0.00016052,2]
[366169460,1750097466375,-490.0,0.00016052,2]
[366169461,1750097466385,-490.0,0.00016052,2]
[366169462,1750097466394,-524.26,0.00016052,2]
[366169463,1750097466404,-824.61,0.00016052,2]
[366169464,1750097466414,-194.16596634,0.00016052,2]
[366169465,1750097466423,-402.69160976,0.00016052,2]
[366169466,1750097466434,-315.127537,0.00016052,2]
[366169467,1750097466443,-490.0,0.00016052,2]
[366169468,1750097466453,-617.31,0.00016052,2]
[366169469,1750097466462,-649.84,0.00016052,2]
[366169470,1750097466472,-315.127537,0.00016052,2]
[366169471,1750097466482,-490.0,0.00016052,2]
[366169472,1750097466491,-490.0,0.00016052,2]
[366169473,1750097466501,-1014.9,0.00016052,2]
[366169474,1750097466511,-580.9,0.00016052,2]
[366169475,1750097466520,-490.0,0.00016052,2]
[366169476,1750097466530,-1044.12,0.00016052,2]
[366169477,1750097466544,-490.0,0.00016052,2]
[366169478,1750097466553,-490.0,0.00016052,2]
[366169479,1750097466563,-490.0,0.00016052,2]
[366169480,1750097466572,-490.0,0.00016052,2]
[366169481,1750097466582,-490.0,0.00016052,2]
[366169482,1750097466592,-490.0,0.00016052,2]
[366169483,1750097466601,-1807.42,0.00016052,2]
[366169484,1750097466611,-490.0,0.00016052,2]
[366169485,1750097466622,-490.0,0.00016052,2]
[366169486,1750097466632,-151.0,0.00016052,2]
[366169487,1750097466642,-490.0,0.00016052,2]
[366169488,1750097466651,-1158.78,0.00016052,2]
[366169489,1750097466661,-280.584855,0.00016052,2]
[366169490,1750097466671,-490.0,0.00016052,2]
[366169491,1750097466681,-151.0,0.00016052,2]
[366169492,1750097466691,-151.0,0.00016052,2]
[366169493,1750097466702,-490.0,0.00016052,2]
[366169494,1750097466713,-784.75,0.00016052,2]
[366169495,1750097466723,-490.05,0.00016052,2]
[366169496,1750097466941,-490.0,0.00016052,2]
[366169497,1750097466951,-490.0,0.00016052,2]
[366169498,1750097466961,-1985.02,0.00016052,2]
[366169499,1750097466971,-490.0,0.00016052,2]
[366169500,1750097466980,-490.0,0.00016052,2]
[366169501,1750097466990,-962.1,0.00016052,2]
[366169502,1750097467000,-944.05,0.00016052,2]
[366169503,1750097467011,-1472.76,0.00016052,2]
[366169504,1750097467021,-345.868883,0.00016052,2]
[366169505,1750097467031,-345.868883,0.00016052,2]
[366169506,1750097467040,-490.0,0.00016052,2]
[366169507,1750097467051,-570.62,0.00016052,2]
[366169508,1750097467061,-1022.84,0.00016052,2]
[366169509,1750097467071,-490.0,0.00016052,2]
[366169510,1750097467080,-151.0,0.00016052,2]
[366169511,1750097467089,-151.0,0.00016052,2]
[366169512,1750097467101,-1527.24,0.00016052,2]
[366169513,1750097467112,-490.0,0.00016052,2]
[366169514,1750097467123,-1465.16,0.00016052,2]
[366169515,1750097467133,-490.0,0.00016052,2]
[366169516,1750097467143,-957.75,0.00016052,2]
[366169517,1750097467155,-151.0,0.00016052,2]
[366169518,1750097467164,-151.0,0.00016052,2]
[366169519,1750097467174,-151.0,0.00016052,2]
[366169520,1750097467187,-490.0,0.00016052,2]
[366169521,1750097467196,-556.13,0.00016052,2]
[366169522,1750097467207,-1212.82,0.00016052,2]
[366169523,1750097467217,-1523.66,0.00016052,2]
[366169524,1750097467227,-151.0,0.00016052,2]
[366169525,1750097467236,-151.0,0.00016052,2]
[366169526,1750097467245,-490.0,0.00016052,2]
[366169527,1750097467255,-306.292509,0.00016052,2]
[366169528,1750097467264,-151.0,0.00016052,2]
[366169529,1750097467274,-306.292509,0.00016052,2]
[366169530,1750097467283,-151.0,0.00016052,2]
[366169531,1750097467294,-151.0,0.00016052,2]
[366169532,1750097467304,-151.0,0.00016052,2]
[366169533,1750097467314,-151.0,0.00016052,2]
[366169534,1750097467323,-1416.89,0.00016052,2]
[366169535,1750097467333,-151.0,0.00016052,2]
[366169536,1750097467343,-1547.23,0.00016052,2]
[366169537,1750097467353,-237.41313,0.00016052,2]
[366169538,1750097467362,-151.0,0.00016052,2]
[366169539,1750097467371,-294.871409,0.00016052,2]
[366169540,1750097467381,-294.871409,0.00016052,2]
[366169541,1750097467391,-490.0,0.00016052,2]
[366169542,1750097467400,-501.08,0.00016052,2]
[366169543,1750097467409,-1464.74,0.00016052,2]
[366169544,1750097467420,-490.0,0.00016052,2]
[366169545,1750097467429,-924.02,0.00016052,2]
[366169546,1750097467439,-764.62,0.00016052,2]
[366169547,1750097467448,-151.0,0.00016052,2]
[366169548,1750097467458,-151.0,0.00016052,2]
[366169549,1750097467467,-790.02,0.00016052,2]
[366169550,1750097467477,-490.0,0.00016052,2]
[366169551,1750097467487,-490.0,0.00016052,2]
[366169552,1750097467496,-490.0,0.00016052,2]
[366169553,1750097467506,-490.0,0.00016052,2]
[366169554,1750097467517,-490.0,0.00016052,2]
[366169555,1750097467527,-490.0,0.00016052,2]
[366169556,1750097467540,-529.91,0.00016052,2]
[366169557,1750097467550,-853.81,0.00016052,2]
[366169558,1750097467560,-151.0,0.00016052,2]
[366169559,1750097467571,-490.0,0.00016052,2]
[366169560,1750097467582,-1168.91,0.00016052,2]
[366169561,1750097467593,-294.15796,0.00016052,2]
[366169562,1750097467603,-1067.25,0.00016052,2]
[366169563,1750097467614,-294.15796,0.00016052,2]
[366169564,1750097467624,-2186.48,0.00016052,2]
[366169565,1750097467636,-1153.6,0.00016052,2]
[366169566,1750097467646,-860.46,0.00016052,2]
[366169567,1750097467656,-417.859807,0.00016052,2]
[366169568,1750097467665,-417.859807,0.00016052,2]
[366169569,1750097467675,-417.859807,0.00016052,2]
[366169570,1750097467685,-417.859807,0.00016052,2]
[366169571,1750097467694,-1749.97,0.00016052,2]
[366169572,1750097467704,-850.36,0.00016052,2]
[366169573,1750097467714,-151.0,0.00016052,2]
[366169574,1750097467723,-900.45,0.00016052,2]
[366169575,1750097467733,-1038.07,0.00016052,2]
[366169576,1750097467743,-151.0,0.00016052,2]
[366169577,1750097467753,-152.362097,0.00016052,2]
[366169578,1750097467763,-490.0,0.00016052,2]
[366169579,1750097467773,-152.362097,0.00016052,2]
[366169580,1750097467783,-2645.85,0.00016052,2]
[366169581,1750097467792,-423.936989,0.00016052,2]
[366169582,1750097467802,-423.936989,0.00016052,2]
[366169583,1750097467812,-151.0,0.00016052,2]
[366169584,1750097467823,-490.0,0.00016052,2]
[366169585,1750097467833,-151.0,0.00016052,2]
[366169586,1750097467843,-981.06,0.00016052,2]
[366169587,1750097467853,-654.46,0.00016052,2]
[366169588,1750097467864,-1120.23,0.00016052,2]
[366169589,1750097467875,-151.0,0.00016052,2]
[366169590,1750097467884,-151.0,0.00016052,2]
[366169591,1750097467894,-824.25,0.00016052,2]
[366169592,1750097467904,-151.0,0.00016052,2]
[366169593,1750097467914,-743.93,0.00016052,2]
[366169594,1750097467924,-151.0,0.00016052,2]
[366169595,1750097467934,-1232.36,0.00016052,2]
[366169596,1750097467944,-920.01,0.00016052,2]
[366169597,1750097467955,-816.92,0.00016052,2]
[366169598,1750097467967,-293.278158,0.00016052,2]
[366169599,1750097467976,-490.0,0.00016052,2]
[366169600,1750097467987,-293.278158,0.00016052,2]
[366169601,1750097467998,-1520.64,0.00016052,2]
[366169602,1750097468007,-151.0,0.00016052,2]
[366169603,1750097468017,-836.03,0.00016052,2]
[366169604,1750097468027,-151.0,0.00016052,2]
[366169605,1750097468036,-183.17491,0.00016052,2]
[366169606,1750097468046,-1416.35,0.00016052,2]
[366169607,1750097468055,-490.0,0.00016052,2]
[366169608,1750097468065,-490.0,0.00016052,2]
[366169609,1750097468075,-490.0,0.00016052,2]
[366169610,1750097468085,-490.0,0.00016052,2]
[366169611,1750097468094,-151.0,0.00016053,2]
[366169612,1750097468103,-151.0,0.00016053,2]
[366169613,1750097468113,-151.0,0.00016053,2]
[366169614,1750097468123,-251.0,0.00016053,2]
[366169615,1750097468133,-151.0,0.00016053,2]
[366169616,1750097468142,-151.0,0.00016053,2]
[366169617,1750097468152,-151.0,0.00016053,2]
[366169618,1750097468162,-151.0,0.00016053,2]
[366169619,1750097468171,-151.0,0.00016053,2]
[366169620,1750097468527,-151.0,0.00016053,2]
[366169621,1750097468542,-151.0,0.00016053,2]
[366169622,1750097468552,-151.0,0.00016053,2]
[366169623,1750097468562,-198.567034,0.00016053,2]
[366169624,1750097468573,-198.567034,0.00016053,2]
[366169625,1750097468583,-151.0,0.00016053,2]
[366169626,1750097468592,-228.986909,0.00016053,2]
[366169627,1750097468602,-151.0,0.00016053,2]
[366169628,1750097468613,-151.0,0.00016053,2]
[366169629,1750097468623,-151.0,0.00016053,2]
[366169630,1750097468633,-529.193119,0.00016053,2]
[366169631,1750097468645,-481.466804,0.00016053,2]
[366169632,1750097468654,-481.466804,0.00016053,2]
[366169633,1750097468664,-257.544191,0.00016053,2]
[366169634,1750097468674,-151.0,0.00016053,2]
[366169635,1750097468683,-421.70699,0.00016053,2]
[366169636,1750097468693,-421.70699,0.00016053,2]
[366169637,1750097468703,-151.0,0.00016053,2]
[366169638,1750097468713,-151.0,0.00016053,2]
[366169639,1750097468723,-151.0,0.00016053,2]
[366169640,1750097468734,-151.0,0.00016053,2]
[366169641,1750097468745,-193.35277,0.00016053,2]
[366169642,1750097468755,-193.35277,0.00016053,2]
[366169643,1750097468765,-151.0,0.00016053,2]
[366169644,1750097468775,-151.0,0.00016053,2]
[366169645,1750097468785,-151.0,0.00016053,2]
[366169646,1750097468795,-151.0,0.00016053,2]
[366169647,1750097468805,-151.0,0.00016053,2]
[366169648,1750097468815,-151.0,0.00016053,2]
[366169649,1750097468825,-151.0,0.00016053,2]
[366169650,1750097468835,-168.492557,0.00016053,2]
[366169651,1750097468845,-151.0,0.00016053,2]
[366169652,1750097468856,-151.0,0.00016053,2]
[366169653,1750097468865,-463.77,0.00016055,2]
[366169654,1750097468875,-1595.02,0.00016055,2]
[366169655,1750097468885,-833.8156298,0.00016057,2]
[366169656,1750097468894,-151.0,0.00016061,2]
[366169657,1750097468904,-151.0,0.00016061,2]
[366169658,1750097468913,-151.0,0.00016061,2]
[366169659,1750097468923,-151.0,0.00016061,2]
[366169660,1750097468932,-151.0,0.00016061,2]
[366169661,1750097468941,-213.806361,0.00016061,2]
[366169662,1750097468951,-213.806361,0.00016061,2]
[366169663,1750097468961,-151.0,0.00016062,2]
[366169664,1750097468970,-152.960072,0.00016062,2]
[366169665,1750097468980,-151.0,0.00016062,2]
[366169666,1750097468990,-315.127537,0.00016062,2]
[366169667,1750097469000,-315.127537,0.00016062,2]
[366169668,1750097469009,-153.84221188,0.00016065,2]
[366169669,1750097469019,-2524.82941417,0.00016072,2]
[366169670,1750097469031,-500.0,0.00016073,2]
[366169671,1750097469041,-500.0,0.00016073,2]
[366169672,1750097469052,-2000.0,0.00016089,2]
[366169673,1750097469062,-500.0,0.00016089,2]
[366169674,1750097469071,-200.0,0.00016089,2]
[366169675,1750097469081,-1000.0,0.00016093,2]
[366169676,1750097469090,-150.0,0.000161,2]
[366169677,1750097469099,-150.0,0.00016101,2]
[366169678,1750097469109,-152.0,0.00016115,3]
[366169679,1750097469119,-151.0,0.00016116,2]
[366169680,1750097469128,-688.876505,0.00016116,2]
[366169681,1750097469138,-688.876505,0.00016116,2]
[366169682,1750097469147,-151.0,0.00016116,2]
[366169683,1750097469156,-151.0,0.00016116,2]
[366169684,1750097469166,-9999.99,0.00016116,2]
[366169685,1750097469176,-343.25138439,0.00016117,2]
[366169686,1750097469187,-2618.2481025,0.00016127,2]
[366169687,1750097469197,-666.0,0.00016131,2]
[366169688,1750097469207,-490.0,0.00016131,2]
[366169689,1750097469219,-490.0,0.00016131,2]
[366169690,1750097469229,-1442.42,0.00016131,2]
[366169691,1750097469240,-908.67,0.00016131,2]
[366169692,1750097469251,-653.23,0.00016131,2]
[366169693,1750097469261,-2511.15,0.00016131,2]
[366169694,1750097469270,-4466.3,0.00016131,2]
[366169695,1750097469281,-498.67,0.00016131,2]
[366169696,1750097469292,-3739.89,0.00016131,2]
[366169697,1750097469302,-490.0,0.00016131,2]
[366169698,1750097469313,-9721.67,0.00016131,2]
[366169699,1750097469322,-6752.98,0.00016131,2]
[366169700,1750097469333,-2555.29,0.00016131,2]
[366169701,1750097469342,-5332.73,0.00016131,2]
[366169702,1750097469352,-1095.3,0.00016131,2]
[366169703,1750097469363,-1407.16,0.00016131,2]
[366169704,1750097469374,-1398.51,0.00016131,2]
[366169705,1750097469386,-1100.78,0.00016131,2]
[366169706,1750097469396,-1511.21,0.00016131,2]
[366169707,1750097469408,-866.1,0.00016131,2]
[366169708,1750097469417,-4716.19,0.00016131,2]
[366169709,1750097469427,-13968.45,0.00016131,2]
[366169710,1750097469437,-1441.28,0.00016131,2]
[366169711,1750097469448,-1424.41,0.00016131,2]
[366169712,1750097469458,-795.77,0.00016131,2]
[366169713,1750097469467,-2241.26,0.00016131,2]
[366169714,1750097469477,-1210.59,0.00016131,2]
[366169715,1750097469487,-647.97,0.00016131,2]
[366169716,1750097469497,-862.72,0.00016131,2]